bitfinex-derivatives/quotes_SOLF0:USTF0_20241230
["timestamp","ask_amount","ask_price","bid_price","bid_amount"]
[1735568308936,1.5485,190.06,189.95,4.2072]
[1735568309829,3.0858,190.06,189.95,4.2072]
[1735568310032,13.322067,190.04,189.95,1.5701]
[1735568310230,3.54,190.03,189.95,1.5701]
[1735568310832,3.54,190.03,189.97,2.6368]
[1735568311034,3.54,190.03,189.95,1.5701]
[1735568311233,1.5485,190.06,189.95,1.5701]
[1735568311436,1.6105,190.09,190.02,2.636]
[1735568311737,13.322067,190.1,189.96,16.862067]
[1735568311940,13.322067,190.1,189.97,1.6073]
[1735568312132,13.322067,190.1,190.02,2.636]
[1735568312332,13.322067,190.1,189.97,1.6073]
[1735568313234,14.864867,190.13,189.99,13.322067]
[1735568313443,14.864867,190.13,190.02,13.322067]
[1735568313739,14.864867,190.13,190.03,3.0711]
[1735568314339,14.864867,190.13,190.06,2.6355]
[1735568314734,14.864867,190.13,190.03,3.0711]
[1735568314938,14.864867,190.13,190.05,2.6357]
[1735568315641,14.864867,190.13,190.04,2.6358]
[1735568316141,13.322067,190.1,190.03,1.5195]
[1735568320642,14.864867,190.13,190.03,1.5195]
[1735568320843,1.5428,190.13,190.03,1.5195]
[1735568321036,1.4994,190.14,190.05,13.322067]
[1735568321235,4.75501111,190.16,190.05,13.322067]
[1735568321439,4.75501111,190.16,190.06,1.4898]
[1735568321640,21.52526228,190.17,190.06,1.4898]
[1735568321835,21.52526228,190.17,190.07,3.54]
[1735568322242,18.480867,190.19,190.07,3.54]
[1735568322644,18.480867,190.19,190.11,2.6348]
[1735568325244,14.940867,190.19,190.07,3.54]
[1735568325446,1.5676,190.21,190.08,13.322067]
[1735568325837,13.322067,190.22,190.18,2.6338]
[1735568326636,13.322067,190.22,190.13,3.54]
[1735568327240,13.322067,190.22,190.14,2.6344]
[1735568329939,13.322067,190.22,190.13,6.1746]
[1735568330243,13.322067,190.22,190.13,2.6346]
[1735568330446,13.322067,190.22,190.12,1.5958]
[1735568330947,3.54,190.21,190.12,4.2304]
[1735568331849,3.54,190.21,190.12,1.5958]
[1735568332149,13.322067,190.19,190.1,3.54]
[1735568332545,13.322067,190.19,190.09,2.6351]
[1735568333252,13.322067,190.16,190.08,2.6353]
[1735568333447,16.862067,190.16,190.06,1.4898]
[1735568333645,16.862067,190.16,190.04,5.0141]
[1735568333646,13.322067,190.13,190.04,1.4741]
[1735568336752,1.5452,190.12,190.03,2.6359]
[1735568336946,3.54,190.11,190.02,3.7492551]
[1735568337148,3.54,190.11,190.04,2.6357]
[1735568337550,3.54,190.11,190.03,2.6359]
[1735568337851,13.322067,190.1,190.02,3.7492551]
[1735568338053,13.322067,190.1,189.99,16.862067]
[1735568338054,13.322067,190.07,189.99,2.6365]
[1735568338253,13.322067,190.07,189.98,1.6079]
[1735568338451,3.54,190.06,189.98,1.6079]
[1735568339255,3.54,190.06,189.98,4.2445]
[1735568340554,3.54,190.06,189.98,1.6079]
[1735568340756,3.54,190.06,189.99,2.6365]
[1735568340952,13.322067,190.07,189.98,1.6079]
[1735568341150,13.322067,190.1,189.98,1.6079]
[1735568341456,16.862067,190.1,189.99,13.322067]
[1735568341646,16.862067,190.1,190.05,2.6356]
[1735568341850,3.54,190.1,190.05,2.6356]
[1735568345159,1.5452,190.12,190.05,2.6356]
[1735568345358,5.0852,190.12,190.05,2.6356]
[1735568350962,13.322067,190.1,190.03,2.6359]
[1735568351263,13.322067,190.1,189.99,16.395867]
[1735568351955,13.322067,190.1,190.05,2.6356]
[1735568352155,13.322067,190.1,189.99,16.395867]
[1735568352557,13.322067,190.1,190.05,2.6356]
[1735568352758,13.322067,190.1,189.99,16.395867]
[1735568353453,5.0852,190.12,189.99,16.395867]
[1735568353762,13.322067,190.13,190.1,2.6349]
[1735568353962,1.6063,190.15,190.1,2.6349]
[1735568354357,1.6063,190.15,190.02,16.862067]
[1735568354564,1.6063,190.15,190.09,2.6351]
[1735568356763,3.52,190.14,190.09,2.6351]
[1735568357058,3.52,190.14,190.02,16.862067]
[1735568357465,3.52,190.14,190.06,2.6354]
[1735568358273,8.52187123,190.11,190.06,2.6354]
[1735568362171,8.52187123,190.09,190.05,2.6357]
[1735568362469,8.52187123,190.09,190.01,8.52187123]
[1735568362670,8.52187123,190.09,190.05,2.6357]
[1735568362869,8.52187123,190.09,190.01,8.52187123]
[1735568363071,8.52187123,190.09,190.03,8.52187123]
[1735568363271,8.52187123,190.11,190.05,2.6357]
[1735568363777,8.52187123,190.11,190.06,2.6355]
[1735568367075,8.52187123,190.11,190.03,8.52187123]
[1735568367274,8.52187123,190.13,190.05,8.52187123]
[1735568367572,10.12817123,190.15,190.07,8.52187123]
[1735568367772,21.52526228,190.16,190.09,8.52187123]
[1735568367969,21.52526228,190.16,190.11,8.52187123]
[1735568368164,21.52526228,190.16,190.15,2.6343]
[1735568368977,23.07576228,190.22,190.18,2.6339]
[1735568369171,30.04713351,190.22,190.15,8.52187123]
[1735568369874,30.04713351,190.22,190.18,2.6338]
[1735568370277,21.52526228,190.22,190.18,2.6338]
[1735568370474,9.64226,190.23,190.18,2.6338]
[1735568371478,8.12456,190.23,190.15,13.29983777]
[1735568371872,8.12456,190.23,190.22,2.6333]
[1735568374374,8.12456,190.23,190.2,2.6335]
[1735568375067,8.12456,190.23,190.19,1.6166]
[1735568375273,8.12456,190.23,190.15,3.52]
[1735568375768,8.12456,190.23,190.18,2.6338]
[1735568376074,8.12456,190.23,190.15,3.52]
[1735568377377,8.12456,190.23,190.17,2.634]
[1735568377576,8.12456,190.23,190.15,3.52]
[1735568378475,8.12456,190.23,190.13,5.0999]
[1735568379074,8.12456,190.23,190.19,2.6338]
[1735568379479,8.12456,190.23,190.21,2.6335]
[1735568379680,8.12456,190.23,190.13,5.0999]
[1735568380081,8.12456,190.23,190.16,2.6342]
[1735568380285,8.12456,190.23,190.13,5.0999]
[1735568381282,8.12456,190.23,190.22,2.6333]
[1735568383186,8.12456,190.23,190.13,5.0999]
[1735568383783,8.12456,190.23,190.21,2.6335]
[1735568384282,8.12456,190.23,190.19,2.6337]
[1735568384588,8.12456,190.23,190.13,1.5799]
[1735568384886,8.12456,190.23,190.19,2.6337]
[1735568385282,8.12456,190.23,190.13,1.5799]
[1735568385494,8.12456,190.23,190.21,2.6335]
[1735568387193,8.12456,190.23,190.22,2.6333]
[1735568389000,8.12456,190.23,190.15,13.29983777]
[1735568389200,8.12456,190.23,190.21,2.6335]
[1735568389401,8.12456,190.23,190.13,1.5799]
[1735568389597,8.12456,190.23,190.2,2.6336]
[1735568390702,8.12456,190.23,190.21,2.6335]
[1735568391603,8.12456,190.23,190.22,2.6333]
[1735568392593,8.12456,190.23,190.22,11.14402418]
[1735568392793,6.53061319,190.23,190.22,11.14402418]
[1735568393701,4.08921319,190.23,190.22,11.14402418]
[1735568394202,6.84721599,190.41,190.22,12.03072418]
[1735568394400,0.7963736,190.4,190.32,2.6319]
[1735568394703,8.51072418,190.35,190.32,2.6319]
[1735568394902,8.51072418,190.33,190.3,2.6322]
[1735568395098,8.51072418,190.33,190.27,8.51072418]
[1735568395299,8.51072418,190.31,190.25,8.51072418]
[1735568395500,8.51072418,190.29,190.26,2.6327]
[1735568395700,8.51072418,190.29,190.23,8.51072418]
[1735568395899,8.51072418,190.31,190.23,8.51072418]
[1735568396202,16.80920936,190.33,190.27,2.6325]
[1735568396699,16.80920936,190.33,190.22,3.52]
[1735568397398,18.35720936,190.33,190.25,2.6328]
[1735568398300,18.35720936,190.33,190.22,3.52]
[1735568398500,18.35720936,190.33,190.24,2.633]
[1735568398902,18.35720936,190.33,190.25,2.6329]
[1735568399607,18.35720936,190.33,190.26,2.6327]
[1735568400001,18.35720936,190.33,190.22,3.52]
[1735568400197,14.83720936,190.33,190.28,2.6325]
[1735568400404,18.35720936,190.33,190.28,2.6325]
[1735568400710,18.35720936,190.33,190.22,3.52]
[1735568401013,14.83720936,190.33,190.28,2.6325]
[1735568401606,14.83720936,190.33,190.3,2.6321]
[1735568401906,3.0963,190.34,190.23,13.28920936]
[1735568402307,3.0963,190.34,190.31,2.6321]
[1735568402608,3.0963,190.34,190.23,13.28920936]
[1735568402798,3.0963,190.34,190.3,2.6322]
[1735568403511,3.0963,190.34,190.33,2.6318]
[1735568403808,1.5605,190.4,190.27,3.52]
[1735568404009,13.28920936,190.39,190.26,13.28920936]
[1735568404604,13.28920936,190.39,190.32,2.6318]
[1735568405303,16.80920936,190.39,190.32,2.6318]
[1735568405508,16.80920936,190.39,190.26,13.28920936]
[1735568406108,16.80920936,190.39,190.31,2.632]
[1735568409016,3.52,190.38,190.32,2.6319]
[1735568409709,13.28920936,190.39,190.32,2.6319]
[1735568409906,3.52,190.38,190.32,2.6319]
[1735568411012,3.52,190.38,190.26,13.28920936]
[1735568411710,3.52,190.38,190.3,2.6321]
[1735568411907,3.52,190.38,190.26,13.28920936]
[1735568412316,3.52,190.38,190.25,3.52]
[1735568412923,13.28920936,190.36,190.23,13.28920936]
[1735568414020,13.28920936,190.36,190.27,2.6326]
[1735568414516,13.28920936,190.36,190.23,13.28920936]
[1735568415109,0.79827016,190.35,190.24,2.633]
[1735568415319,0.79827016,190.35,190.23,13.28920936]
[1735568415517,1.6021,190.34,190.23,13.28920936]
[1735568415718,3.52,190.33,190.23,13.28920936]
[1735568415914,3.1213,190.33,190.25,2.6329]
[1735568416110,3.52,190.32,190.25,2.6329]
[1735568416517,3.52,190.32,190.23,13.28920936]
[1735568417219,3.52,190.32,190.24,2.6331]
[1735568417720,3.52,190.32,190.21,3.74575556]
[1735568418026,13.28920936,190.3,190.2,2.6335]
[1735568418318,8.50872789,190.26,190.19,8.50872789]
[1735568418921,8.50872789,190.26,190.2,2.6335]
[1735568419226,8.50872789,190.26,190.19,8.50872789]
[1735568419828,8.50872789,190.26,190.19,11.14242789]
[1735568420327,10.07072789,190.26,190.19,8.50872789]
[1735568422027,8.50872789,190.24,190.17,8.50872789]
[1735568422426,8.50872789,190.22,190.15,11.14292789]
[1735568422628,8.50872789,190.22,190.15,8.50872789]
[1735568422929,12.02872789,190.22,190.15,8.50872789]
[1735568423331,3.52,190.22,190.17,8.50872789]
[1735568424523,3.52,190.22,190.16,2.6341]
[1735568424929,12.02872789,190.22,190.16,2.6341]
[1735568425327,12.02872789,190.22,190.15,8.50872789]
[1735568425831,12.02872789,190.22,190.16,2.6341]
[1735568426133,12.02872789,190.22,190.15,8.50872789]
[1735568426323,12.02872789,190.22,190.15,11.14302789]
[1735568431930,12.02872789,190.22,190.15,8.50872789]
[1735568432628,12.02872789,190.22,190.15,11.14302789]
[1735568433433,1.5596,190.25,190.15,8.50872789]
[1735568433736,1.562,190.26,190.19,8.50872789]
[1735568434136,8.50872789,190.25,190.19,8.50872789]
[1735568434334,8.50872789,190.25,190.17,8.50872789]
[1735568435038,8.50872789,190.27,190.19,8.50872789]
[1735568435230,8.50872789,190.27,190.21,8.50872789]
[1735568435530,8.50872789,190.27,190.16,3.1024]
[1735568435531,8.50872789,190.27,190.19,8.50872789]
[1735568435735,8.50872789,190.25,190.19,8.50872789]
[1735568436827,8.50872789,190.25,190.19,11.14232789]
[1735568437232,8.50872789,190.25,190.19,8.50872789]
[1735568437841,8.50872789,190.25,190.19,11.14242789]
[1735568438030,8.50872789,190.25,190.19,2.6337]
[1735568438939,8.50872789,190.25,190.18,8.50872789]
[1735568439134,8.50872789,190.25,190.18,11.14252789]
[1735568439336,8.50872789,190.27,190.2,8.50872789]
[1735568439539,8.50872789,190.29,190.2,8.50872789]
[1735568440541,8.50872789,190.29,190.22,2.6332]
[1735568440741,8.50872789,190.27,190.2,8.50872789]
[1735568441040,8.50872789,190.27,190.2,11.14222789]
[1735568441441,12.00872789,190.29,190.22,8.50872789]
[1735568441636,8.50872789,190.27,190.2,8.50872789]
[1735568443141,8.50872789,190.27,190.21,2.6334]
[1735568443539,8.50872789,190.27,190.2,8.50872789]
[1735568443844,8.50872789,190.25,190.17,8.50872789]
[1735568444245,8.50872789,190.25,190.16,1.5397]
[1735568444540,8.50872789,190.23,190.16,10.04842789]
[1735568445141,8.50872789,190.25,190.18,8.50872789]
[1735568445743,8.50872789,190.25,190.16,1.5397]
[1735568445944,8.50872789,190.25,190.18,2.6338]
[1735568446343,8.50872789,190.25,190.16,10.04842789]
[1735568446839,3.5,190.27,190.18,8.50872789]
[1735568447142,3.5,190.27,190.21,8.50872789]
[1735568448045,3.5,190.27,190.21,11.14202789]
[1735568448245,8.50872789,190.26,190.19,8.50872789]
[1735568448846,3.5,190.27,190.21,8.50872789]
[1735568449050,8.50872789,190.28,190.21,8.50872789]
[1735568449347,8.50872789,190.29,190.23,2.6331]
[1735568450244,8.50872789,190.29,190.22,2.6332]
[1735568450541,8.50872789,190.27,190.17,3.5]
[1735568450745,8.50872789,190.27,190.2,2.6335]
[1735568450946,8.50872789,190.27,190.19,8.50872789]
[1735568451351,8.50872789,190.27,190.22,2.6332]
[1735568451644,8.50872789,190.27,190.17,3.5]
[1735568451853,8.50872789,190.27,190.19,8.50872789]
[1735568452039,8.50872789,190.27,190.17,3.5]
[1735568452040,3.5,190.31,190.21,8.50872789]
[1735568452238,8.50872789,190.3,190.21,8.50872789]
[1735568453045,8.50872789,190.3,190.23,2.633]
[1735568453952,1.6074,190.32,190.23,8.50872789]
[1735568454151,8.50872789,190.31,190.23,8.50872789]
[1735568454350,9.80705161,190.33,190.25,8.50872789]
[1735568454551,18.3157795,190.33,190.25,8.50872789]
[1735568454751,8.50872789,190.33,190.25,8.50872789]
[1735568454944,21.87418443,190.34,190.27,11.14132789]
[1735568455149,8.50872789,190.31,190.18,1.568]
[1735568455351,8.50872789,190.31,190.23,8.50872789]
[1735568455645,3.5,190.35,190.25,8.50872789]
[1735568455956,8.50872789,190.33,190.25,8.50872789]
[1735568456153,3.5,190.35,190.25,11.14152789]
[1735568456354,8.50872789,190.33,190.25,8.50872789]
[1735568456951,8.50872789,190.29,190.23,3.5]
[1735568457253,8.50872789,190.31,190.24,8.50872789]
[1735568457453,16.4953511,190.36,190.24,8.50872789]
[1735568457649,8.50872789,190.31,190.24,8.50872789]
[1735568458757,16.4953511,190.36,190.24,8.50872789]
[1735568458956,8.50872789,190.33,190.24,8.50872789]
[1735568459456,8.50872789,190.33,190.26,2.6326]
[1735568459856,8.50872789,190.33,190.26,11.14132789]
[1735568460956,8.50872789,190.33,190.24,2.633]
[1735568461256,8.50872789,190.29,190.22,8.50872789]
[1735568461455,8.50872789,190.29,190.23,2.633]
[1735568461657,8.50872789,190.29,190.2,8.50872789]
[1735568462255,3.5,190.32,190.18,10.07672789]
[1735568462256,8.50872789,190.27,190.18,10.07672789]
[1735568462461,8.50872789,190.27,190.18,8.50872789]
[1735568462655,12.00872789,190.27,190.18,11.14252789]
[1735568462856,13.48202789,190.27,190.18,11.14252789]
[1735568463064,13.48202789,190.27,190.18,8.50872789]
[1735568463561,13.48202789,190.27,190.19,2.6336]
[1735568463859,13.48202789,190.27,190.18,8.50872789]
[1735568464353,14.95812789,190.27,190.18,8.50872789]
[1735568465657,6.4494,190.27,190.18,8.50872789]
[1735568465862,6.4494,190.27,190.2,8.50872789]
[1735568466757,6.4494,190.27,190.22,2.6331]
[1735568467464,4.9733,190.27,190.22,8.50872789]
[1735568467762,1.5132,190.28,190.22,8.50872789]
[1735568468261,1.5132,190.28,190.24,2.6329]
[1735568468857,1.5132,190.28,190.23,2.6331]
[1735568471665,3.5,190.31,190.24,8.50872789]
[1735568471861,3.1118,190.33,190.24,8.50872789]
[1735568472057,6.6118,190.33,190.24,8.50872789]
[1735568472359,3.1118,190.33,190.26,8.50872789]
[1735568472861,3.1118,190.33,190.29,2.6323]
[1735568473265,1.5636,190.34,190.31,2.632]
[1735568473465,1.5636,190.34,190.3,8.50872789]
[1735568474164,21.97033288,190.36,190.32,8.50872789]
[1735568474360,21.97033288,190.36,190.33,2.6317]
[1735568474665,1.5857,190.38,190.32,8.50872789]
[1735568474964,10.09442789,190.38,190.3,8.50872789]
[1735568475263,8.50872789,190.36,190.28,8.50872789]
[1735568476057,8.50872789,190.34,190.26,12.00872789]
[1735568476457,8.50872789,190.34,190.27,2.6325]
[1735568476658,8.50872789,190.34,190.26,12.00872789]
[1735568476854,8.50872789,190.34,190.26,8.50872789]
[1735568477058,1.5857,190.38,190.32,8.50872789]
[1735568477665,1.5857,190.38,190.32,11.14032789]
[1735568477968,10.09442789,190.38,190.3,8.50872789]
[1735568478466,1.5857,190.38,190.32,8.50872789]
[1735568478959,10.09442789,190.38,190.32,8.50872789]
[1735568479562,10.09442789,190.38,190.32,11.14042789]
[1735568480264,1.5857,190.38,190.28,13.27732538]
[1735568480465,1.5857,190.38,190.33,2.6315]
[1735568480666,1.5636,190.4,190.33,2.6315]
[1735568482965,87.88133152,190.5,190.37,13.27732538]
[1735568483269,0.79817524,190.46,190.37,13.27732538]
[1735568483567,0.79817524,190.46,190.4,2.6306]
[1735568483763,0.79817524,190.46,190.38,3.5]
[1735568484069,87.88133152,190.5,190.38,3.5]
[1735568484267,0.79820317,190.46,190.38,3.5]
[1735568484468,0.79820317,190.46,190.41,2.6304]
[1735568484866,0.79820317,190.46,190.37,13.27732538]
[1735568485068,13.27732538,190.46,190.38,3.5]
[1735568485364,13.27732538,190.49,190.38,3.5]
[1735568485669,0.79813307,190.48,190.39,2.6307]
[1735568485872,0.79813814,190.48,190.39,2.6307]
[1735568486775,13.27732538,190.49,190.39,2.6307]
[1735568487074,0.79800205,190.48,190.39,2.6307]
[1735568488872,13.27732538,190.49,190.39,2.6307]
[1735568489973,13.27732538,190.49,190.38,3.5]
[1735568490174,13.27732538,190.49,190.38,6.1308]
[1735568490773,13.27732538,190.49,190.34,13.27732538]
[1735568491076,0.79795982,190.48,190.35,3.5]
[1735568491477,0.79795982,190.48,190.36,2.631]
[1735568491671,0.79795982,190.48,190.34,13.27732538]
[1735568491672,13.27732538,190.46,190.34,13.27732538]
[1735568491877,13.27732538,190.46,190.34,3.5]
[1735568492078,13.27732538,190.43,190.31,13.27732538]
[1735568492272,1.5105,190.42,190.29,3.5]
[1735568492474,13.27732538,190.4,190.31,2.6318]
[1735568492683,13.27732538,190.4,190.29,3.5]
[1735568492882,16.77732538,190.4,190.29,3.5]
[1735568494386,16.77732538,190.4,190.29,6.1321]
[1735568494589,16.77732538,190.4,190.29,3.5]
[1735568494979,16.77732538,190.4,190.3,2.6319]
[1735568495384,16.77732538,190.4,190.27,2.6323]
[1735568495986,13.27732538,190.37,190.25,13.27732538]
[1735568496295,1.4931,190.36,190.25,13.27732538]
[1735568496494,3.5,190.35,190.26,2.6324]
[1735568497190,3.5,190.35,190.28,2.6322]
[1735568498096,3.5,190.35,190.27,2.6324]
[1735568499890,1.4931,190.36,190.27,2.6324]
[1735568500093,16.77732538,190.4,190.28,13.27732538]
[1735568500595,16.77732538,190.4,190.29,2.6321]
[1735568501894,16.77732538,190.4,190.28,13.27732538]
[1735568502094,16.77732538,190.4,190.28,16.77732538]
[1735568502701,16.77732538,190.4,190.31,2.6317]
[1735568504496,13.27732538,190.37,190.26,3.5]
[1735568505000,13.27732538,190.37,190.26,6.1324]
[1735568506004,13.27732538,190.37,190.26,3.5]
[1735568506295,13.27732538,190.34,190.23,3.5]
[1735568506606,1.5318,190.33,190.23,6.1328]
[1735568506799,1.5318,190.33,190.23,3.5]
[1735568507504,16.77732538,190.37,190.25,13.27732538]
[1735568507698,3.5,190.37,190.25,13.27732538]
[1735568507898,3.5,190.37,190.28,13.27732538]
[1735568508900,3.5,190.37,190.31,2.6318]
[1735568509305,3.5,190.37,190.28,13.27732538]
[1735568510097,16.77732538,190.37,190.25,13.27732538]
[1735568510303,16.77732538,190.37,190.24,1.4683]
[1735568511399,16.77732538,190.37,190.27,2.6323]
[1735568511601,16.77732538,190.37,190.24,1.4683]
[1735568511800,16.77732538,190.37,190.25,13.27732538]
[1735568511997,16.77732538,190.37,190.24,1.4683]
[1735568512207,16.77732538,190.37,190.26,2.6324]
[1735568512398,16.77732538,190.37,190.24,1.4683]
[1735568512599,14.80912538,190.4,190.3,2.632]
[1735568512803,4.29846475,190.39,190.27,13.27732538]
[1735568513004,3.5,190.39,190.27,13.27732538]
[1735568513606,3.5,190.39,190.29,2.6321]
[1735568513904,3.5,190.39,190.27,13.27732538]
[1735568514198,3.5,190.39,190.3,2.632]
[1735568515204,3.5,190.39,190.28,2.6322]
[1735568515405,3.5,190.39,190.27,13.27732538]
[1735568515705,3.5,190.39,190.29,2.632]
[1735568516700,13.27732538,190.37,190.24,1.4683]
[1735568517806,13.27732538,190.37,190.28,2.6322]
[1735568518209,13.27732538,190.37,190.24,1.4683]
[1735568518401,13.27732538,190.37,190.25,2.6326]
[1735568518903,13.27732538,190.34,190.23,15.91022538]
[1735568519101,4.9761,190.33,190.23,13.27732538]
[1735568519912,6.502,190.33,190.23,13.27732538]
[1735568520205,8.0151,190.33,190.2,13.27732538]
[1735568520406,13.27732538,190.31,190.2,13.27732538]
[1735568520601,13.27732538,190.31,190.17,13.27732538]
[1735568520806,13.27732538,190.31,190.18,2.6335]
[1735568521006,13.27732538,190.31,190.17,13.27732538]
[1735568521207,13.27732538,190.31,190.19,6.37977373]
[1735568522105,13.27732538,190.28,190.18,2.6336]
[1735568522303,16.77732538,190.28,190.15,13.27732538]
[1735568522704,16.77732538,190.28,190.16,2.6339]
[1735568523109,16.77732538,190.28,190.15,13.27732538]
[1735568524511,16.77732538,190.28,190.18,2.6336]
[1735568525706,16.77732538,190.28,190.19,2.6334]
[1735568528910,103.4667205,190.33,190.18,13.27732538]
[1735568529100,3.5,190.32,190.21,13.27732538]
[1735568529710,3.5,190.32,190.21,16.77732538]
[1735568530308,3.5,190.32,190.24,13.27732538]
[1735568530713,3.5,190.36,190.24,13.27732538]
[1735568531014,4.6959,190.39,190.27,13.27732538]
[1735568531215,3.5,190.38,190.32,2.6317]
[1735568531509,3.5,190.38,190.27,13.27732538]
[1735568531913,3.5,190.38,190.26,3.5]
[1735568532108,3.5,190.38,190.27,13.27732538]
[1735568533415,3.5,190.38,190.31,2.6318]
[1735568536106,3.5,190.38,190.22,1.4866]
[1735568536414,14.07583649,190.37,190.27,2.6323]
[1735568536609,23.08884428,190.37,190.27,2.6323]
[1735568536814,23.08884428,190.37,190.23,3.5]
[1735568537011,13.27732538,190.37,190.23,3.5]
[1735568537815,13.27732538,190.37,190.28,2.6322]
[1735568538017,13.27732538,190.37,190.25,13.27732538]
[1735568538218,3.5,190.38,190.25,13.27732538]
[1735568540415,3.5,190.38,190.31,2.6318]
[1735568540616,4.6959,190.39,190.31,2.6318]
[1735568540916,8.1959,190.39,190.33,2.6315]
[1735568541622,8.1959,190.39,190.34,2.6314]
[1735568542815,8.1959,190.39,190.33,2.6315]
[1735568543319,4.6959,190.39,190.33,2.6315]
[1735568544216,4.6959,190.39,190.28,16.77732538]
[1735568545016,4.6959,190.39,190.29,2.6321]
[1735568545418,13.27732538,190.37,190.24,3.5]
[1735568545819,13.27732538,190.37,190.22,18.26392538]
[1735568546015,13.27732538,190.37,190.27,2.6323]
[1735568546211,13.27732538,190.37,190.22,18.26392538]
[1735568547021,13.27732538,190.37,190.29,2.6321]
[1735568547424,4.6959,190.39,190.27,13.27732538]
[1735568547816,14.50916254,190.39,190.27,13.27732538]
[1735568548017,4.6959,190.39,190.31,2.6317]
[1735568550221,4.6959,190.39,190.32,2.6316]
[1735568553423,4.6959,190.39,190.27,13.27732538]
[1735568553628,13.27732538,190.37,190.22,18.26392538]
[1735568553828,4.6959,190.39,190.25,13.27732538]
[1735568554423,4.6959,190.39,190.32,2.6316]
[1735568556224,4.6959,190.39,190.25,13.27732538]
[1735568556724,13.27732538,190.37,190.25,2.6326]
[1735568556922,13.27732538,190.34,190.25,2.6326]
[1735568557118,3.48,190.33,190.25,2.6326]
[1735568557425,13.27732538,190.31,190.23,2.6329]
[1735568558025,13.27732538,190.31,190.2,2.6333]
[1735568558221,13.27732538,190.31,190.18,32.24646728]
[1735568558730,13.27732538,190.31,190.21,2.6332]
[1735568559231,13.27732538,190.31,190.2,2.6333]
[1735568559634,13.27732538,190.28,190.2,2.6333]
[1735568559829,16.75732538,190.28,190.18,3.0001]
[1735568560131,16.75732538,190.28,190.19,2.6335]
[1735568560433,16.75732538,190.28,190.16,13.27732538]
[1735568560833,16.75732538,190.28,190.17,2.6337]
[1735568561227,16.75732538,190.28,190.14,3.48]
[1735568561431,16.75732538,190.28,190.17,2.6337]
[1735568561830,16.75732538,190.28,190.14,3.48]
[1735568562032,16.75732538,190.28,190.18,2.6336]
[1735568562227,16.75732538,190.28,190.14,3.48]
[1735568562433,3.48,190.28,190.22,2.633]
[1735568562730,13.27732538,190.31,190.19,16.75732538]
[1735568562932,8.1779,190.32,190.19,16.75732538]
[1735568563132,8.1779,190.32,190.23,2.6328]
[1735568564136,8.1779,190.32,190.19,16.75732538]
[1735568564335,8.1779,190.32,190.23,2.6328]
[1735568566037,13.27732538,190.31,190.22,2.6331]
[1735568567236,13.27732538,190.31,190.23,2.6329]
[1735568567938,13.27732538,190.31,190.22,2.6331]
[1735568568237,13.27732538,190.31,190.19,13.27732538]
[1735568569037,13.27732538,190.31,190.23,2.6329]
[1735568569732,8.1779,190.32,190.19,13.27732538]
[1735568570238,8.1779,190.32,190.22,2.633]
[1735568570438,8.1779,190.32,190.19,13.27732538]
[1735568570737,8.1779,190.32,190.22,13.27732538]
[1735568570941,8.1779,190.32,190.27,2.6323]
[1735568571437,8.1779,190.32,190.22,13.27732538]
[1735568571636,4.6979,190.32,190.22,13.27732538]
[1735568571837,4.6979,190.32,190.22,16.75732538]
[1735568572641,4.6979,190.32,190.24,2.6328]
[1735568573838,4.6979,190.32,190.25,2.6327]
[1735568579445,8.1779,190.32,190.25,2.6327]
[1735568580044,8.1779,190.32,190.27,2.6324]
[1735568580241,1.5995,190.32,190.22,13.27732538]
[1735568580442,14.74932538,190.38,190.25,13.27732538]
[1735568580646,3.48,190.37,190.32,2.6317]
[1735568580942,1.472,190.38,190.25,16.75732538]
[1735568581348,1.472,190.38,190.33,2.6315]
[1735568582736,21.97033288,190.45,190.28,13.27732538]
[1735568583047,31.21473642,190.44,190.31,13.27732538]
[1735568583240,31.21473642,190.44,190.32,5.0745]
[1735568583442,21.39482538,190.44,190.32,5.0745]
[1735568583745,17.91482538,190.44,190.32,5.0745]
[1735568584347,17.91482538,190.44,190.37,2.6309]
[1735568584648,17.91482538,190.44,190.32,5.0745]
[1735568584849,17.91482538,190.44,190.35,2.6312]